bitfinex/quotes_SOLUSD_20250612
["timestamp","ask_amount","ask_price","bid_price","bid_amount"]
[1749728797426,15.81864025,158.05,158.0,28.23486442]
[1749728797628,6.32711167,158.05,158.04,14.11743221]
[1749728797930,33.36711167,158.05,158.04,14.11743221]
[1749728798129,6.32711167,158.05,158.04,14.11743221]
[1749728798334,33.36711167,158.05,158.04,14.11743221]
[1749728798728,33.36711167,158.05,158.0,15.66033221]
[1749728799037,33.36711167,158.05,158.04,14.11743221]
[1749728800743,6.32711167,158.05,158.04,14.11743221]
[1749728801545,27.0,158.05,158.04,14.11743221]
[1749728802042,6.32631112,158.07,158.04,14.11743221]
[1749728802231,6.32631112,158.07,158.0,40.94368107]
[1749728802232,6.32631112,158.07,158.06,14.11743221]
[1749728802430,33.30631112,158.07,158.06,14.11743221]
[1749728803236,6.32551078,158.09,158.06,14.11743221]
[1749728803445,6.32551078,158.09,158.08,14.11743221]
[1749728803647,33.30551078,158.09,158.08,14.11743221]
[1749728805023,6.32551078,158.09,158.08,14.11743221]
[1749728805229,26.96,158.09,158.08,14.11743221]
[1749728806444,32.32431065,158.12,158.08,28.23486442]
[1749728806445,6.32431065,158.12,158.08,28.23486442]
[1749728806635,6.32431065,158.12,158.11,14.11743221]
[1749728806947,33.28431065,158.12,158.11,14.11743221]
[1749728807148,22.12858704,158.17,158.11,14.11743221]
[1749728807447,22.12858704,158.17,158.09,0.14216157]
[1749728807638,26.94,158.16,158.09,0.28432314]
[1749728807829,26.94,158.16,158.15,14.11743221]
[1749728808032,48.12858704,158.17,158.15,14.11743221]
[1749728808344,6.32311097,158.15,158.09,0.28432314]
[1749728808536,26.94,158.14,158.09,0.28432314]
[1749728808737,6.32311097,158.15,158.09,0.28432314]
[1749728808930,26.92,158.14,158.09,0.28432314]
[1749728809125,6.32311097,158.15,158.09,18.933972]
[1749728809337,33.24311097,158.15,158.14,14.11743221]
[1749728810134,33.24311097,158.15,158.09,18.933972]
[1749728810425,33.24311097,158.15,158.14,14.11743221]
[1749728811561,22.12858704,158.17,158.14,14.11743221]
[1749728811853,6.32231143,158.17,158.16,14.11743221]
[1749728815033,33.20231143,158.17,158.16,14.11743221]
[1749728819930,6.32231143,158.17,158.16,14.11743221]
[1749728820239,33.20231143,158.17,158.16,14.11743221]
[1749728821362,33.20231143,158.17,158.09,18.933972]
[1749728821544,33.20231143,158.17,158.16,14.11743221]
[1749728822035,33.20231143,158.17,158.09,18.933972]
[1749728822238,26.88,158.17,158.16,28.23486442]
[1749728822467,26.88,158.18,158.16,28.23486442]
[1749728822837,26.88,158.18,158.17,14.11743221]
[1749728823038,33.2015121,158.19,158.17,14.11743221]
[1749728823339,33.2015121,158.19,158.18,14.11743221]
[1749728823759,33.2015121,158.19,158.16,14.11743221]
[1749728823972,33.2015121,158.19,158.18,14.11743221]
[1749728824258,6.3215121,158.19,158.18,14.11743221]
[1749728824471,26.88,158.19,158.18,14.11743221]
[1749728824661,49.86783354,158.2,158.18,14.11743221]
[1749728824860,49.86783354,158.2,158.19,14.11743221]
[1749728825049,22.98783354,158.2,158.19,14.11743221]
[1749728825373,49.86783354,158.2,158.19,14.11743221]
[1749728826552,16.66666667,158.2,158.19,14.11743221]
[1749728826866,22.98777918,158.2,158.19,14.11743221]
[1749728827435,22.98777918,158.2,158.16,14.11743221]
[1749728827640,22.98777918,158.2,158.19,14.11743221]
[1749728827942,22.98777918,158.2,158.16,14.11743221]
[1749728828154,22.98777918,158.2,158.19,14.11743221]
[1749728828355,22.98777918,158.2,158.14,27.6508]
[1749728828863,22.98777918,158.2,158.19,14.11743221]
[1749728832972,22.98777918,158.2,158.16,14.11743221]
[1749728833271,22.98777918,158.2,158.19,14.11743221]
[1749728833861,16.66666667,158.2,158.19,14.11743221]
[1749728834065,22.98777918,158.2,158.19,14.11743221]
[1749728834648,22.98777918,158.2,158.1,1.5808]
[1749728834970,22.98777918,158.2,158.11,44.64964886]
[1749728834971,26.86,158.19,158.11,44.64964886]
[1749728835167,26.86,158.19,158.18,14.11743221]
[1749728836461,33.1815121,158.19,158.18,14.11743221]
[1749728840652,33.1815121,158.19,158.16,14.11743221]
[1749728840953,33.1815121,158.19,158.18,14.11743221]
[1749728841674,33.1815121,158.19,158.13,0.28432314]
[1749728841873,33.1815121,158.19,158.18,14.11743221]
[1749728846782,33.1815121,158.19,158.12,24.80964886]
[1749728846987,33.1815121,158.19,158.18,14.11743221]
[1749728847972,33.1815121,158.19,158.12,24.80964886]
[1749728848175,33.1815121,158.19,158.16,14.11743221]
[1749728848391,48.98529236,158.19,158.17,14.11743221]
[1749728849088,48.98529236,158.19,158.11,18.64964886]
[1749728849271,48.98529236,158.19,158.17,14.11743221]
[1749728850163,48.98529236,158.19,158.16,14.11743221]
[1749728850563,4.67143176,158.18,158.16,14.11743221]
[1749728850857,40.97743221,158.17,158.06,1.5321]
[1749728851061,40.91998747,158.16,158.06,1.5321]
[1749728851378,26.86,158.15,158.08,14.11743221]
[1749728851585,26.86,158.15,158.14,14.11743221]
[1749728853565,33.18311097,158.15,158.14,14.11743221]
[1749728853880,33.18311097,158.15,158.08,32.76708107]
[1749728854062,48.99088839,158.15,158.13,14.11743221]
[1749728854262,33.18311097,158.15,158.14,14.11743221]
[1749728855198,48.99088839,158.15,158.08,14.11743221]
[1749728855490,22.13368746,158.13,158.1,14.11743221]
[1749728855706,26.86,158.12,158.11,14.11743221]
[1749728856166,26.86,158.12,158.06,1.5321]
[1749728856363,26.86,158.12,158.11,14.11743221]
[1749728857586,33.18431065,158.12,158.11,14.11743221]
[1749728857832,33.18431065,158.12,158.04,24.75604886]
[1749728857833,18.64964886,158.11,158.01,1.665]
[1749728857961,26.0,158.09,157.99,6.2566]
[1749728858287,26.0,158.09,157.98,6.16]
[1749728858288,26.86,158.08,158.05,14.11743221]
[1749728858455,26.86,158.08,158.06,14.11743221]
[1749728858862,26.86,158.08,158.07,14.11743221]
[1749728859362,26.86,158.11,158.07,28.23486442]
[1749728859584,26.86,158.11,158.1,14.11743221]
[1749728859877,33.18471064,158.11,158.1,14.11743221]
[1749728860359,6.2372,158.14,158.1,14.11743221]
[1749728860360,6.32442329,158.12,158.1,14.11743221]
[1749728860560,6.32442329,158.12,158.11,14.11743221]
[1749728860770,33.18442329,158.12,158.11,14.11743221]
[1749728864102,33.18442329,158.12,158.08,14.11743221]
[1749728864389,33.18442329,158.12,158.11,14.11743221]
[1749728864896,33.18442329,158.12,158.04,18.64964886]
[1749728865195,33.18442329,158.12,158.11,14.11743221]
[1749728871492,26.86,158.12,158.11,14.11743221]
[1749728873014,26.86,158.12,158.08,14.11743221]
[1749728873204,26.86,158.12,158.05,6.16]
[1749728873515,6.32471064,158.11,158.1,14.11743221]
[1749728874615,33.18471064,158.11,158.1,14.11743221]
[1749728877823,33.18471064,158.11,158.05,6.16]
[1749728878015,48.99648725,158.11,158.07,14.11743221]
[1749728878223,63.11391946,158.11,158.06,14.11743221]
[1749728878428,14.11743221,158.1,158.05,20.27743221]
[1749728878592,6.32591093,158.08,158.06,14.11743221]
[1749728878786,26.86,158.07,158.06,14.11743221]
[1749728878986,26.86,158.07,158.05,20.27743221]
[1749728879986,26.86,158.07,158.04,14.11743221]
[1749728880486,26.86,158.07,158.05,14.11743221]
[1749728880702,6.32671137,158.06,158.05,14.11743221]
[1749728881815,6.32671137,158.06,158.04,14.11743221]
[1749728881987,26.86,158.05,158.0,14.11743221]
[1749728882188,26.86,158.05,158.03,14.11743221]
[1749728882604,26.86,158.05,158.04,14.11743221]
[1749728882797,33.18711167,158.05,158.04,14.11743221]
[1749728883006,33.18711167,158.05,158.03,14.11743221]
[1749728883202,49.00489085,158.05,158.03,14.11743221]
[1749728883397,49.00489085,158.05,158.01,14.11743221]
[1749728883607,63.12232306,158.05,158.01,14.11743221]
[1749728883805,14.11743221,158.04,157.97,6.16]
[1749728884127,26.86,158.03,157.97,6.16]
[1749728884332,52.86,158.03,157.97,6.16]
[1749728884510,52.86,158.03,157.99,14.11743221]
[1749728884702,6.32831287,158.02,157.97,6.16]
[1749728884905,26.86,158.02,158.01,14.11743221]
[1749728885223,33.18780362,158.04,158.01,14.11743221]
[1749728885400,33.18780362,158.04,158.02,14.11743221]
[1749728885600,33.18780362,158.04,158.0,14.11743221]
[1749728885830,49.00658367,158.04,158.0,14.11743221]
[1749728886128,49.00658367,158.04,158.01,14.11743221]
[1749728888511,49.00658367,158.04,157.97,6.16]
[1749728888512,6.32780362,158.04,158.03,14.11743221]
[1749728888817,33.18780362,158.04,158.03,14.11743221]
[1749728890346,26.86,158.04,158.03,14.11743221]
[1749728890627,26.86,158.05,158.03,14.11743221]
[1749728890829,33.18671137,158.06,158.04,14.11743221]
[1749728891129,33.18671137,158.06,158.05,14.11743221]
[1749728892309,26.86,158.06,158.05,14.11743221]
[1749728892506,26.86,158.06,158.01,1.5649]
[1749728892708,26.86,158.06,158.05,14.11743221]
[1749728895731,33.18591093,158.08,158.05,14.11743221]
[1749728895924,33.18591093,158.08,158.07,14.11743221]
[1749728896125,6.32591093,158.08,158.07,14.11743221]
[1749728896323,6.32551078,158.09,158.07,14.11743221]
[1749728896639,26.86,158.09,158.08,14.11743221]
[1749728896825,6.32471064,158.11,158.08,14.11743221]
[1749728897027,6.3239107,158.13,158.1,14.11743221]
[1749728897222,6.3239107,158.13,158.12,14.11743221]
[1749728897617,33.1839107,158.13,158.12,14.11743221]
[1749728898027,6.3239107,158.13,158.12,14.11743221]
[1749728898224,33.1839107,158.13,158.12,14.11743221]
[1749728899826,6.3239107,158.13,158.12,14.11743221]
[1749728900128,33.1839107,158.13,158.12,14.11743221]
[1749728901543,33.1839107,158.13,158.08,14.11743221]
[1749728901747,6.3239107,158.13,158.12,14.11743221]
[1749728901940,33.1839107,158.13,158.12,14.11743221]
[1749728902115,6.3239107,158.13,158.12,14.11743221]
[1749728902322,33.1839107,158.13,158.12,14.11743221]
[1749728907733,33.1839107,158.13,158.06,6.16]
[1749728907734,26.0,158.1,158.03,1.5523]
[1749728907932,26.84,158.09,158.0,14.11743221]
[1749728908139,26.84,158.09,158.05,14.11743221]
[1749728908841,22.14068825,158.08,158.07,14.11743221]
[1749728909950,22.14068825,158.08,158.06,14.11743221]
[1749728910256,26.86,158.07,158.06,14.11743221]
[1749728910456,33.18631112,158.07,158.06,14.11743221]
[1749728911940,26.86,158.07,158.06,14.11743221]
[1749728912152,26.84,158.09,158.06,14.11743221]
[1749728912367,33.16551078,158.09,158.08,14.11743221]
[1749728912869,6.32551078,158.09,158.08,14.11743221]
[1749728913077,33.16551078,158.09,158.08,14.11743221]
[1749728914352,48.97928774,158.09,157.99,7.7123]
[1749728914559,48.97928774,158.09,158.06,14.11743221]
[1749728915466,48.97928774,158.09,158.07,14.11743221]
[1749728916868,48.97928774,158.09,158.08,14.11743221]
[1749728917466,33.16551078,158.09,158.08,14.11743221]
[1749728918954,6.32511068,158.1,158.08,14.11743221]
[1749728919171,6.32511068,158.1,158.09,14.11743221]
[1749728919367,33.16511068,158.1,158.09,14.11743221]
[1749728919572,6.32511068,158.1,158.09,14.11743221]
[1749728919775,33.16511068,158.1,158.09,14.11743221]
[1749728922586,6.32431065,158.12,158.09,14.11743221]
[1749728922799,6.32400953,158.13,158.11,14.11743221]
[1749728922960,33.16400953,158.13,158.12,14.11743221]
[1749728927494,6.32311097,158.15,158.12,14.11743221]
[1749728927795,6.32311097,158.15,158.08,14.11743221]
[1749728927796,6.32311097,158.15,158.14,14.11743221]
[1749728928287,33.16311097,158.15,158.14,14.11743221]
[1749728930302,33.16311097,158.15,158.08,14.11743221]
[1749728930506,33.16311097,158.15,158.14,14.11743221]
[1749728931670,33.16311097,158.15,158.07,18.933972]
[1749728931872,33.16311097,158.15,158.14,14.11743221]
[1749728934189,32.32191174,158.18,158.14,14.11743221]
[1749728934504,26.82,158.17,158.09,18.933972]
[1749728934683,26.82,158.16,158.09,18.933972]
[1749728935567,26.82,158.16,158.15,14.11743221]
[1749728936067,26.82,158.16,158.14,14.11743221]
[1749728936267,6.32311097,158.15,158.13,14.11743221]
[1749728936565,26.82,158.14,158.13,14.11743221]
[1749728937200,40.93743221,158.14,158.06,1.6508]
[1749728937409,40.11743221,158.11,158.06,1.6508]
[1749728937711,40.93743221,158.1,158.06,1.6508]
[1749728937885,26.82,158.1,158.06,1.6508]
[1749728938086,40.93743221,158.1,158.06,1.6508]
[1749728938407,36.25671995,158.09,158.06,1.6508]
[1749728938577,26.82,158.08,158.06,1.6508]
[1749728939201,40.93743221,158.08,158.02,6.14]
[1749728939506,66.93743221,158.08,158.03,14.11743221]
[1749728939715,66.93743221,158.08,158.04,14.11743221]
[1749728940010,52.82,158.08,158.04,14.11743221]
[1749728940383,6.32631112,158.07,158.05,14.11743221]
[1749728940601,26.82,158.06,158.05,14.11743221]
[1749728940985,26.82,158.06,158.04,14.11743221]
[1749728942482,6.32711167,158.05,158.04,14.11743221]
[1749728944786,6.32711167,158.05,158.02,6.14]
[1749728945203,26.82,158.04,158.02,6.14]
[1749728945384,26.82,158.04,158.03,14.11743221]
[1749728946791,33.14751202,158.04,158.03,14.11743221]
[1749728951709,33.14777622,158.04,158.02,6.14]
[1749728951901,33.14777622,158.04,158.03,14.11743221]
[1749728953412,33.14777622,158.04,158.02,6.14]
[1749728953590,33.14777622,158.04,158.03,14.11743221]
[1749728962442,33.14777622,158.04,158.02,6.14]
[1749728962599,33.14777622,158.04,158.02,20.25743221]
[1749728962799,33.14777622,158.04,158.02,14.11743221]
[1749728963105,48.96655627,158.04,158.02,14.11743221]
[1749728964143,48.96655627,158.04,157.97,1.5056]
[1749728964425,48.96655627,158.04,158.01,14.11743221]
[1749728964608,48.96655627,158.04,157.95,18.64964886]
[1749728964609,48.96655627,158.04,158.02,14.11743221]
[1749728966022,48.96655627,158.04,158.01,14.11743221]
[1749728966503,48.96655627,158.04,157.95,18.64964886]
[1749728966706,63.08398848,158.04,158.0,14.11743221]
[1749728966907,7.6845,158.03,157.99,14.11743221]
[1749728967215,26.82,158.02,158.0,14.11743221]
[1749728968547,6.32871337,158.01,157.99,14.11743221]
[1749728968721,26.82,158.0,157.99,14.11743221]
[1749728969512,6.32842946,158.02,157.99,14.11743221]
[1749728969710,6.32842946,158.02,158.01,14.11743221]
[1749728969906,33.14842946,158.02,158.01,14.11743221]
[1749728971140,6.32751202,158.04,158.01,14.11743221]
[1749728971309,26.82,158.03,157.96,0.28432314]
[1749728971517,26.82,158.03,158.02,14.11743221]
[1749728972015,26.82,158.03,157.96,0.28432314]
[1749728972237,6.32751202,158.04,158.02,14.11743221]
[1749728972435,26.82,158.03,158.02,14.11743221]
[1749728972738,33.14791242,158.03,158.02,14.11743221]
[1749728973932,33.14791242,158.03,157.95,44.64964886]
[1749728974125,33.14791242,158.03,158.02,14.11743221]
[1749728974645,48.96769347,158.03,158.01,14.11743221]
[1749728974851,48.96769347,158.03,157.99,14.11743221]
[1749728975514,48.96769347,158.03,158.0,14.11743221]
[1749728976116,48.96769347,158.03,158.01,14.11743221]
[1749728977817,6.32791242,158.03,158.02,14.11743221]
[1749728978013,33.14791242,158.03,158.02,14.11743221]
[1749728979444,33.14791242,158.03,157.96,0.28432314]
[1749728979630,33.14791242,158.03,158.02,14.11743221]
[1749728979829,26.82,158.03,158.02,14.11743221]
[1749728981750,33.14791242,158.03,158.02,14.11743221]
[1749728985060,33.14791242,158.03,157.96,0.28432314]
[1749728985266,33.14791242,158.03,158.02,14.11743221]
[1749728986360,6.32791242,158.03,158.02,14.11743221]
[1749728986671,33.14791242,158.03,157.96,0.28432314]
[1749728986960,6.32791242,158.03,158.02,14.11743221]
[1749728987158,33.12791242,158.03,158.02,14.11743221]
[1749728994462,26.8,158.03,158.0,14.11743221]
[1749728994639,26.8,158.03,158.01,14.11743221]
[1749728995675,6.32831287,158.02,158.01,14.11743221]
[1749728996054,6.32831287,158.02,158.0,14.11743221]
[1749728996255,26.8,158.01,158.0,14.11743221]
[1749728996557,26.8,158.01,157.98,14.11743221]
[1749728997950,6.32911392,158.0,157.99,14.11743221]
[1749728998663,6.32911392,158.0,157.94,7.7964]
[1749728998871,26.8,157.99,157.98,14.11743221]
[1749728999065,26.8,157.99,157.97,14.11743221]
[1749729000057,6.32991517,157.98,157.97,14.11743221]
[1749729000767,33.12957289,157.99,157.97,14.11743221]
[1749729000949,33.12957289,157.99,157.98,14.11743221]
[1749729002684,6.32871337,158.01,157.98,14.11743221]
[1749729002885,6.32871337,158.01,157.94,6.14]
[1749729002886,26.8,158.0,157.94,6.14]
[1749729003375,26.0,157.99,157.95,14.11743221]
[1749729003578,26.8,157.98,157.95,14.11743221]
[1749729004566,26.8,157.98,157.94,6.14]
[1749729004567,26.8,157.98,157.96,14.11743221]
[1749729004772,6.33031588,157.97,157.94,6.14]
[1749729004965,6.33031588,157.97,157.96,14.11743221]
[1749729005172,33.13031588,157.97,157.96,14.11743221]
[1749729005986,33.13031588,157.97,157.95,14.11743221]
[1749729007490,48.95610558,157.97,157.94,20.25743221]
[1749729007878,48.95610558,157.97,157.94,14.11743221]
[1749729008869,6.33031588,157.97,157.96,14.11743221]
[1749729009073,6.32993365,157.98,157.93,18.64964886]
[1749729009388,26.8,157.97,157.93,18.64964886]
[1749729009687,26.8,157.97,157.96,14.11743221]
[1749729010270,33.13031588,157.97,157.96,14.11743221]
[1749729011372,33.13031588,157.97,157.95,14.11743221]
[1749729011966,6.32911392,158.0,157.96,14.11743221]
[1749729012184,6.32871337,158.01,157.94,0.14216157]
[1749729012489,6.32871337,158.01,157.91,26.0]
[1749729012490,26.0,157.99,157.91,18.64964886]
[1749729012668,26.78,157.98,157.94,14.11743221]
[1749729012867,26.78,157.98,157.96,14.11743221]
[1749729013071,26.78,157.98,157.95,14.11743221]
[1749729013300,40.89743221,157.98,157.9,1.6312]
[1749729013464,40.89743221,157.98,157.87,18.64964886]
[1749729013465,26.0,157.95,157.92,14.11743221]
[1749729013665,26.78,157.94,157.92,14.11743221]
[1749729014394,6.3319192,157.93,157.92,14.11743221]
[1749729015397,6.3319192,157.93,157.87,18.64964886]
[1749729015690,26.78,157.92,157.91,14.11743221]
[1749729016875,33.11232016,157.92,157.91,14.11743221]
[1749729019100,6.33071663,157.96,157.91,28.23486442]
[1749729019277,26.78,157.95,157.92,14.11743221]
[1749729019480,26.78,157.95,157.94,14.11743221]
[1749729020169,33.11111744,157.95,157.94,14.11743221]
[1749729022370,6.3308392,157.96,157.94,14.11743221]
[1749729022571,6.3308392,157.96,157.95,14.11743221]
[1749729022771,33.1108392,157.96,157.95,14.11743221]
[1749729023576,149.1,158.0,157.95,14.11743221]
[1749729023895,149.1,158.0,157.92,14.11743221]
[1749729023896,6.32911392,158.0,157.99,14.11743221]
[1749729024071,33.10911392,158.0,157.99,14.11743221]
[1749729024273,6.32911392,158.0,157.99,14.11743221]
[1749729024496,15.69053221,158.04,157.99,14.11743221]
[1749729024497,6.32831287,158.02,157.99,14.11743221]
[1749729024683,6.32631112,158.07,158.01,14.11743221]
[1749729024987,26.78,158.06,158.0,14.11743221]
[1749729025281,26.78,158.06,158.05,14.11743221]
[1749729025592,33.10671137,158.06,158.05,14.11743221]
[1749729025776,6.32671137,158.06,158.05,14.11743221]
[1749729026119,33.10671137,158.06,158.05,14.11743221]
[1749729026572,33.10671137,158.06,158.0,14.11743221]
[1749729026772,33.10671137,158.06,158.05,14.11743221]
[1749729027394,6.32671137,158.06,158.05,14.11743221]
[1749729027597,33.10671137,158.06,158.05,14.11743221]
[1749729027774,33.10671137,158.06,158.04,14.11743221]
[1749729027975,6.32671137,158.06,158.05,14.11743221]
[1749729028189,33.10671137,158.06,158.05,14.11743221]
[1749729028700,33.10671137,158.06,158.0,14.11743221]
[1749729028701,33.10671137,158.06,157.99,18.933972]
[1749729028890,33.10671137,158.06,158.04,14.11743221]
[1749729029080,26.78,158.05,158.04,14.11743221]
[1749729029800,33.10711167,158.05,158.04,14.11743221]
[1749729029980,33.08711167,158.05,158.04,14.11743221]
[1749729031002,26.76,158.05,158.04,14.11743221]
[1749729031176,26.76,158.05,158.03,14.11743221]
[1749729032293,26.76,158.05,157.99,18.64964886]
[1749729032502,26.76,158.05,158.04,14.11743221]
[1749729033200,27.94426461,158.08,158.04,14.11743221]
[1749729033400,26.76,158.07,158.06,14.11743221]
[1749729033591,33.08631112,158.07,158.06,14.11743221]
[1749729034100,33.08631112,158.07,158.05,14.11743221]
[1749729035911,33.08631112,158.07,158.06,14.11743221]
[1749729036293,33.08631112,158.07,158.05,14.11743221]
[1749729036798,6.32631112,158.07,158.05,14.11743221]
[1749729037108,6.32631112,158.07,158.06,14.11743221]
[1749729037293,33.08631112,158.07,158.06,14.11743221]
[1749729038509,34.27031906,158.08,158.06,14.11743221]
[1749729038814,6.32511068,158.1,158.07,14.11743221]
[1749729038997,6.32511068,158.1,158.09,14.11743221]
[1749729039191,33.08511068,158.1,158.09,14.11743221]
[1749729039910,6.32511068,158.1,158.09,14.11743221]
[1749729040102,33.08511068,158.1,158.09,14.11743221]
[1749729040304,15.81092343,158.12,158.04,1.6425]
[1749729040524,26.76,158.11,158.09,14.11743221]
[1749729041113,40.11743221,158.1,158.0,15.62953221]
[1749729041311,26.0,158.08,158.04,14.11743221]
[1749729041512,26.76,158.07,158.04,14.11743221]
[1749729041701,26.76,158.07,158.03,14.11743221]
[1749729041904,40.87743221,158.07,157.98,18.64964886]
[1749729042101,40.87743221,158.07,158.03,14.11743221]
[1749729042492,6.32671137,158.06,158.03,14.11743221]
[1749729042691,26.76,158.05,158.03,14.11743221]
[1749729044498,6.32751202,158.04,157.97,18.64964886]
[1749729044697,26.76,158.03,158.01,14.11743221]
[1749729046499,6.32831287,158.02,158.01,14.11743221]
[1749729050525,6.32831287,158.02,157.97,18.64964886]
[1749729050708,6.32831287,158.02,158.01,14.11743221]
[1749729053079,6.32831287,158.02,158.0,14.11743221]
[1749729053198,26.74,158.01,157.99,14.11743221]
[1749729053403,26.74,158.01,157.96,7.7537]
[1749729053404,26.74,158.01,157.96,6.1]
[1749729053715,26.74,158.01,157.98,14.11743221]
[1749729054026,26.74,158.01,157.99,14.11743221]
[1749729055425,6.32911392,158.0,157.99,14.11743221]
[1749729055609,33.06881004,158.01,157.99,14.11743221]
[1749729055807,33.06881004,158.01,158.0,14.11743221]
[1749729056723,33.06881004,158.01,157.96,6.1]
[1749729056939,33.06881004,158.01,158.0,14.11743221]
[1749729057149,63.00802568,158.01,157.92,1.5916]
[1749729057318,63.00802568,158.01,157.88,1.5884]
[1749729057319,22.15330083,157.99,157.88,1.5884]
[1749729057524,26.74,157.98,157.94,14.11743221]
[1749729058119,40.85743221,157.98,157.93,14.11743221]
[1749729058423,14.11743221,157.97,157.92,14.11743221]
[1749729058620,26.74,157.96,157.92,14.11743221]
[1749729059023,26.74,157.96,157.93,14.11743221]
[1749729059543,33.07086996,157.96,157.95,14.11743221]
[1749729065147,164.92268294,158.01,157.95,14.11743221]
[1749729065361,190.92268294,158.01,157.99,14.11743221]
[1749729065647,6.32911392,158.0,157.99,14.11743221]
[1749729066342,33.06911392,158.0,157.99,14.11743221]
[1749729067427,6.32911392,158.0,157.99,14.11743221]
[1749729067622,6.32791242,158.03,157.99,14.11743221]
[1749729067930,6.32791242,158.03,158.02,14.11743221]
[1749729068126,33.06791242,158.03,158.02,14.11743221]
[1749729068444,6.32711167,158.05,158.02,14.11743221]
[1749729068639,26.74,158.03,158.0,14.11743221]
[1749729068835,26.74,158.03,158.02,14.11743221]
[1749729069232,26.74,158.04,158.02,14.11743221]
[1749729069551,26.74,158.04,158.03,14.11743221]
[1749729070444,33.06751202,158.04,158.03,14.11743221]
[1749729071352,33.06751202,158.04,157.96,26.28432314]
[1749729071526,33.06751202,158.04,158.03,14.11743221]
[1749729072057,48.88629207,158.04,157.97,18.64964886]
[1749729072246,48.88629207,158.04,158.01,14.11743221]
[1749729072433,48.88629207,158.04,158.02,14.11743221]
[1749729072631,48.88629207,158.04,158.03,14.11743221]
[1749729073030,48.88629207,158.04,158.01,14.11743221]
[1749729073851,48.88629207,158.04,158.0,14.11743221]
[1749729074436,48.88629207,158.04,158.01,14.11743221]
[1749729075577,48.88629207,158.04,158.03,14.11743221]
[1749729075933,48.88629207,158.04,158.02,14.11743221]
[1749729076134,48.88629207,158.04,158.03,14.11743221]
[1749729076337,48.88629207,158.04,158.02,14.11743221]
[1749729078260,48.88629207,158.04,158.03,14.11743221]
[1749729079938,33.06751202,158.04,158.03,14.11743221]
[1749729080948,33.06751202,158.04,158.0,14.11743221]
[1749729081264,48.88629207,158.04,158.02,14.11743221]
[1749729083039,48.88629207,158.04,158.03,14.11743221]
[1749729084140,48.88629207,158.04,158.02,14.11743221]
[1749729084842,48.88629207,158.04,158.01,14.11743221]
[1749729085556,26.0,158.02,158.0,14.11743221]
[1749729085863,26.72,158.01,158.0,14.11743221]
[1749729086353,26.72,158.01,157.95,18.64964886]
[1749729086557,26.72,158.01,158.0,14.11743221]
[1749729086767,33.04871337,158.01,158.0,14.11743221]
[1749729087267,48.8704968,158.01,158.0,14.11743221]
[1749729087762,48.8704968,158.01,157.98,14.11743221]
[1749729088163,48.8704968,158.01,157.99,14.11743221]
[1749729088536,48.8704968,158.01,157.94,7.6797]
[1749729088537,48.8704968,158.01,157.98,14.11743221]
[1749729088738,14.11743221,158.0,157.95,14.11743221]
[1749729088933,40.83743221,157.99,157.95,14.11743221]
[1749729089161,66.83743221,157.99,157.94,20.19743221]
[1749729089367,14.11743221,157.97,157.93,14.11743221]
[1749729089565,26.72,157.96,157.93,14.11743221]
[1749729090633,6.33111744,157.95,157.93,14.11743221]
[1749729090840,40.83743221,157.94,157.86,7.6128]
[1749729091057,26.0,157.93,157.89,14.11743221]
[1749729091246,26.72,157.92,157.89,14.11743221]
[1749729092262,28.63271104,157.95,157.91,14.11743221]
[1749729092462,26.72,157.94,157.91,14.11743221]
[1749729092644,6.3319192,157.93,157.92,14.11743221]
[1749729092845,6.3319192,157.93,157.86,26.26244886]
[1749729093149,26.72,157.92,157.86,26.26244886]
[1749729094264,26.72,157.92,157.91,14.11743221]
[1749729094768,33.05232016,157.92,157.91,14.11743221]
[1749729097080,33.05232016,157.92,157.9,14.11743221]
[1749729097248,33.05232016,157.92,157.86,26.26244886]
[1749729097448,33.05232016,157.92,157.9,14.11743221]
[1749729097669,33.05232016,157.92,157.86,7.6128]
[1749729097868,33.05232016,157.92,157.89,14.11743221]
[1749729098981,33.05232016,157.92,157.9,14.11743221]
[1749729101154,33.05232016,157.92,157.91,14.11743221]
[1749729102051,33.05232016,157.92,157.9,14.11743221]
[1749729104870,33.05232016,157.92,157.91,14.11743221]
[1749729105070,48.88312056,157.92,157.86,6.08]
[1749729105276,48.88312056,157.92,157.89,14.11743221]
[1749729105599,48.88312056,157.92,157.88,14.11743221]
[1749729105775,48.88312056,157.92,157.89,14.11743221]
[1749729105959,33.05232016,157.92,157.91,14.11743221]
[1749729106477,33.05232016,157.92,157.88,14.11743221]
[1749729106880,74.88312056,157.92,157.88,14.11743221]
[1749729107276,89.00055277,157.92,157.88,14.11743221]
[1749729108479,89.00055277,157.92,157.87,14.11743221]